Cogmind - Beta 15 @@@ ROGUE MODE // 2025.09.24 @ 21:04:43 Player: luka.null Result: Destroyed by W7-2OQ(R) with Subdweller Machine Gun Performance ------------- Evolutions (0) 0 Regions Visited (2) 400 Robots Destroyed (12) 60 Value Destroyed (263) 263 Prototype IDs (14) 280 Alien Tech Used (0) 0 Bonus (-10) -10 TOTAL SCORE: 993 Bonus ------- Friendly Fire -10 Cogmind --------- Core Integrity 0/250 Matter 120/300 Energy 249/250 System Corruption 3% Temperature Cool (0) Movement Flying (357) Ox4 Location -10/Subcaves Parts ------- > --- POWER (1) -------- Ion Engine > --- PROPULSION (2) --- Flight Unit Flight Unit > --- UTILITY (2) ------ Large Storage Unit Visual Processing Unit > --- WEAPON (2) ------- Battle Rifle Subdweller Shrapnel Launcher > --- INVENTORY (15) --- Light Ion Engine Medium Laser Small Laser Small Laser Grenade Launcher Grenade Launcher Peak State ------------ > --- POWER ------------ Ion Engine > --- PROPULSION ------- Light Treads Light Treads > --- UTILITY ---------- Large Storage Unit Visual Processing Unit > --- WEAPON ----------- Beam Rifle Assault Rifle > --- INVENTORY -------- Ion Engine Ion Engine Light Ion Engine Flight Unit Flight Unit Medium Laser Small Laser Small Laser Grenade Launcher Grenade Launcher [Rating: 10] Favorites ----------- Power Ion Engine Engine Ion Engine Propulsion Light Treads Treads Light Treads Flight Unit Flight Unit Utility Large Storage Unit Storage Large Storage Unit Processor Visual Processing Unit Weapon Medium Laser Energy Gun Medium Laser Ballistic Gun Assault Rifle Launcher Subdweller Shrapnel Launcher Build | -11 -10 -10 ------- Run | Yrd Mat Sub Slots Evolved . | . . . Power . | . . . Propulsion . | . . . Utility . | . . . Weapon . | . . . Parts Attached 18 | 6 7 5 Power 3 | 1 1 1 Engine 3 | 1 1 1 Core . | . . . Reactor . | . . . Propulsion 4 | 2 2 . Treads 2 | 2 . . Leg . | . . . Wheel . | . . . Hover . | . . . Flight 2 | . 2 . Utility 4 | 1 3 . Device . | . . . Storage 3 | 1 2 . Processor 1 | . 1 . Hackware . | . . . Protection . | . . . Artifact . | . . . Weapon 7 | 2 1 4 Energy Gun 3 | 2 . 1 Energy Cannon . | . . . Ballistic Gun 2 | . 1 1 Ballistic Cannon . | . . . Launcher 2 | . . 2 Special Weapon . | . . . Impact Weapon . | . . . Slashing Weapon . | . . . Piercing Weapon . | . . . Special Melee Weapon . | . . . Unidentified Prototypes . | . . . Parts Lost 7 | . 1 6 Power 2 | . . 2 Propulsion 2 | . . 2 Utility . | . . . Weapon 3 | . 1 2 Highest Loss Streak 5 | . 1 5 To Critical Strikes 1 | . . 1 Average Backups 6 | 1 5 7 Power 1 | . 1 1 Propulsion 1 | . 1 . Utility . | . . . Weapon 4 | . 2 5 Tool/Special . | . . . Unused Backups 4 | . . 4 Power 1 | . . 1 Propulsion . | . . . Utility . | . . . Weapon 3 | . . 3 Tool/Special . | . . . Average Slot Usage (%) 95 | . 92 97 Engine 13 | . 13 12 Treads 17 | . 28 9 Flight 10 | . . 17 Storage 14 | . 14 14 Processor 11 | . 6 14 Energy Gun 10 | . 18 4 Ballistic Gun 11 | . 8 13 Launcher 5 | . . 9 Peak Build Rating 10 | 6 8 10 Average Rating 8 | 5 6 9 On Entrance 4 | . 6 8 Naked Turns . | . . . Heaviest Build 35 | 14 29 35 Greatest Support 40 | 40 40 40 Greatest Overweight (x) 8 | 1 . 8 Average Overweight (x) . | . . 1 Largest Inventory Capacity 15 | 8 15 15 Average Capacity 14 | 7 13 15 Most Carried 12 | 2 9 12 Average Carried 6 | 1 6 7 Final Capacity 15 | 8 15 15 Final Carried 9 | 2 9 6 Class Distribution -------------------- 100% | Mutant Dominant Class ---------------- Mutant | -10/Materials Mutant | -10/Subcaves Resources | -11 -10 -10 ----------- Run | Yrd Mat Sub Matter Collected 455 | 159 201 95 Remotely . | . . . Salvage Created 306 | . 201 105 Parts 21 | . 12 9 Haulers Intercepted . | . . . Recyclers Shooed 1 | . 1 . Parts Field Recycled . | . . . Retrieved Matter . | . . . Parts Self-Destructed 21 | . . 21 Prevented . | . . . Kills | -11 -10 -10 ------- Run | Yrd Mat Sub Combat Hostiles Destroyed 12 | . 8 4 Guns 10 | . 8 2 AOE 2 | . . 2 Classes Destroyed 4 | . 2 2 Swarmer 7 | . 6 1 Grunt 2 | . 2 . Sentry 1 | . . 1 Subdweller 2 | . . 2 Best Kill Streak 3 | . 3 2 Combat Bots Only 3 | . 3 2 Max Kills in Single Turn 2 | . 2 1 Gunslinging 1 | . 1 . Exploded 1 | . . 1 Melee . | . . . Uniques/NPCs Destroyed . | . . . Combat | -11 -10 -10 -------- Run | Yrd Mat Sub Hostile Shots Fired 111 | . 60 51 Missed 36 | . 21 15 Hits 75 | . 39 36 Projectile 75 | . 39 36 Critical Strikes 2 | . . 2 Damage Taken 1212 | . 342 870 Core 255 | . 85 170 Absorbed by Shields . | . . . Core Remaining (%) 100 | 100 . . Volleys Fired 26 | . 14 12 Largest 2 | . 2 2 Hottest 90 | . 90 76 Shots Fired 54 | . 26 28 Gun 48 | . 26 22 Cannon . | . . . Launcher 6 | . . 6 Special . | . . . Kinetic 22 | . 3 19 Thermal 22 | . 14 8 Explosive 1 | . . 1 Electromagnetic 9 | . 9 . Robot Hit Streak 6 | . 6 4 Robot Miss Streak 4 | . 4 2 Penetration Max . | . . . Secondary Targets 2 | . 2 . Max Gunslinging Chain 1 | . 1 . Shots Hit Robots 27 | . 11 16 Core Hits 17 | . 10 7 Critical Kills . | . . . Critical Parts Destroyed . | . . . Critical Strikes 2 | . 2 . Burn 2 | . 2 . Melee Attacks . | . . . Impact . | . . . Slashing . | . . . Piercing . | . . . Sneak Attacks . | . . . Combat Hostiles . | . . . Follow-up Attacks . | . . . Damage Inflicted 607 | . 143 464 Guns 293 | . 136 157 Cannons . | . . . Explosions 307 | . . 307 Melee . | . . . Ramming 7 | . 7 . Kinetic 327 | . . 327 Thermal 125 | . 85 40 Explosive 97 | . . 97 Electromagnetic 51 | . 51 . Impact . | . . . Slashing . | . . . Piercing . | . . . Highest Corruption 3 | . 3 3 Average Corruption 2 | . 2 3 Corruption Purged . | . . . Corruption Blocked . | . . . Effects 36 | . 5 31 Message Errors 4 | . . 4 Matter Fused 9 | . 3 6 Heat Flow Errors 2 | . . 2 Energy Discharges 5 | . . 5 Data Loss (minor) 10 | . 1 9 Data Loss (major) 2 | . 1 1 Misfires 4 | . . 4 Overload Shots . | . . . Overflow Damage 3 | . . 3 Projectiles . | . . . Explosions 3 | . . 3 Melee . | . . . Knockbacks . | . . . Impact . | . . . Kinetic . | . . . Secondary . | . . . Self-Inflicted Damage 172 | . . 172 Shots 4 | . . 4 Rammed 1 | . 1 . Targets Rammed 1 | . 1 . Kicked . | . . . Crushed . | . . . Highest Temperature 189 | . 90 189 Average Temperature 40 | . 34 83 Received Heat Transfer 246 | . 30 216 Siege Activations . | . . . Martial Activations . | . . . Shielding Activations . | . . . Robots Disrupted . | . . . Combat Hostiles . | . . . Robots Corrupted . | . . . Combat Hostiles . | . . . Parts Fried . | . . . Impact Corruptions . | . . . Robots Melted . | . . . Combat Hostiles . | . . . Parts Melted 2 | . 2 . Heat Transferred 518 | . 407 111 Parts Sabotaged . | . . . Parts Stolen . | . . . Parts Stripped . | . . . Power Chain Reactions . | . . . Alert | -11 -10 -10 ------- Run | Yrd Mat Sub Maximum Alert Level . | . . . Low Security (%) 100 | 100 100 . Level 1 . | . . . Level 2 . | . . . Level 3 . | . . . Level 4 . | . . . Level 5 . | . . . High Security . | . . . Max Security . | . . . Peak Influence 86 | . 86 . Initial . | . . . Average 13 | . 14 . Influence Increases 308 | . 268 40 Destroy 0b10 Robot/C 200 | . 160 40 Destroy Leader 40 | . 40 . Successful Hack 37 | . 37 . Destroy Structure 1 | . 1 . Lose Combat Pursuer 30 | . 30 . Influence Decreases 308 | . 268 40 Time Decay 298 | . 258 40 Lost Part 10 | . 10 . Squads Dispatched 2 | . 2 . Investigation 1 | . 1 . Extermination . | . . . Reinforcement 1 | . 1 . Assault . | . . . Garrison . | . . . Intercept . | . . . Searches Triggered . | . . . Construction Impeded . | . . . Haulers Reinforced . | . . . Active Scanning Responses . | . . . Cargo Convoy Interrupts . | . . . Stealth | -11 -10 -10 --------- Run | Yrd Mat Sub Distress Signals 2 | . 2 . Communications Jammed . | . . . Distress Signals . | . . . Times Spotted 20 | . 15 5 Peak Tracking Total 3 | . 3 2 Tactical Retreats 2 | . 2 . Traps | -11 -10 -10 ------- Run | Yrd Mat Sub Traps Triggered 4 | . 4 . Indirectly . | . . . Trap Hack Attempts . | . . . Triggered . | . . . Disarmed . | . . . Reprogrammed . | . . . Reused . | . . . Traps Extracted . | . . . Installed . | . . . Triggered . | . . . Machines | -11 -10 -10 ---------- Run | Yrd Mat Sub Machines Disabled . | . . . Max in Single Turn . | . . . Machines Repaired . | . . . Machines Dismantled . | . . . Machines Sabotaged . | . . . Overloaded Fab Kills . | . . . Hacking | -11 -10 -10 --------- Run | Yrd Mat Sub Machines Accessed 7 | . 5 2 Terminals 5 | . 5 . Fabricators . | . . . Repair Stations . | . . . Recycling Units . | . . . Scanalyzers . | . . . Garrison Access . | . . . Total Hacks 24 | . 10 14 Successful 18 | . 4 14 Failed 6 | . 6 . Catastrophic 1 | . 1 . Database Lockouts . | . . . Manual . | . . . Terminals 10 | . 10 . Fabricators . | . . . Repair Stations . | . . . Recycling Units . | . . . Scanalyzers . | . . . Garrison Access . | . . . Terminal Hacks 18 | . 4 14 Record 13 | . . 13 Robot Analysis 1 | . 1 . Prototype ID Bank 1 | . 1 . Emergency Access Points 1 | . 1 . Zone Layout 1 | . 1 . Proto ID Catalog 1 | . . 1 Fabricator Hacks . | . . . Repair Station Hacks . | . . . Recycling Unit Hacks . | . . . Scanalyzer . | . . . Garrison Access Hacks . | . . . Unauthorized Hacks . | . . . Terminals . | . . . Fabricators . | . . . Repair Stations . | . . . Recycling Units . | . . . Scanalyzers . | . . . Garrison Access . | . . . Data Cores Recovered . | . . . Used . | . . . Hacking Detections 2 | . 2 . Full Trace Events 1 | . 1 . Feedback Events . | . . . Feedback Blocked . | . . . Robot Schematics Acquired . | . . . Robots Built . | . . . Authchips . | . . . Time . | . . . Total Robot Build Rating . | . . . Part Schematics Acquired . | . . . Parts Built . | . . . Authchips . | . . . Time . | . . . Total Part Build Rating . | . . . Parts Repaired . | . . . Time . | . . . Parts Recycled . | . . . Recycled Matter . | . . . Retrieved Matter . | . . . Retrieved Components . | . . . Parts Scanalyzed . | . . . Part Schematics Acquired . | . . . Parts Damaged . | . . . Bothacking | -11 -10 -10 ------------ Run | Yrd Mat Sub Used RIF Installer . | . . . Robots Hacked . | . . . Non-combat . | . . . Combat . | . . . Robot Hacks Applied . | . . . Relay Couplers Released . | . . . Fabnet Peak Effective % . | . . . Robots Rewired . | . . . Allies Hacked . | . . . Hacks Repelled . | . . . Allies | -11 -10 -10 -------- Run | Yrd Mat Sub Total Allies . | . . . Largest Group . | . . . Highest-Rated Group . | . . . Highest-Rated Ally . | . . . Total Orders . | . . . Ally Attacks . | . . . Total Damage . | . . . Kills . | . . . Allies Corrupted . | . . . Allies Melted . | . . . Intel | -11 -10 -10 ------- Run | Yrd Mat Sub Active Infowar (turns) 2479 | . 626 1853 Optics 2479 | . 626 1853 Robot Analysis Total 1 | . 1 . Derelict Logs Recovered . | . . . Drone Launches . | . . . Drone Recoveries . | . . . Exploration | -11 -10 -10 ------------- Run | Yrd Mat Sub Turns Passed 3256 | 117 1286 1853 Spaces Moved 1555 | 71 749 735 Core 9 | 8 . 1 Treads 1203 | 63 749 391 Legs . | . . . Wheels . | . . . Hover . | . . . Flight 343 | . . 343 Fastest Speed 50 | 50 160 160 Average Speed 200 | 149 160 245 Slowest Speed 450 | 160 160 450 Overloaded Moves . | . . . Propulsion Burnouts . | . . . Robots Hopped . | . . . Potential Cave-ins . | . . . Cave-ins Triggered . | . . . Exploration Rate (%) 32 | 5 58 33 Regions Visited 2 Branch Regions 1 Pre-discovered Areas . | . . . Known Exits Taken . | . . . Unknown Exits Taken 2 | 1 1 . Scrap Searched 1 | . . 1 Spaces Dug . | . . . Terrain Destroyed 67 | . . 67 Melee . | . . . Projectile . | . . . AOE 67 | . . 67 Terrain Rammed . | . . . Walls Destroyed . | . . . Machines Disabled . | . . . Actions | -11 -10 -10 --------- Run | Yrd Mat Sub Total 1644 | 79 807 758 Wait 25 | . 24 1 Move 1553 | 70 748 735 Hop . | . . . Pick Up 13 | 3 8 2 Fast Attach 8 | 5 3 . Attach 9 | 1 2 6 Detach . | . . . Swap 7 | . 5 2 Drop 2 | . 2 . Fire 26 | . 14 12 Melee . | . . . Ram . | . . . Kick . | . . . Crush 1 | . 1 . Escape Stasis . | . . . Rewire . | . . . Trap . | . . . Miscellaneous . | . . . Route ------- -11/Scrapyard -10/Materials (discovered 3 exits: [*Mat] / [*Min] / *Sub) -10/Subcaves History --------- Turn | Location | Event 3 | -11/Scrapyard | Discovered new exit (range 15) 118 | -11/Scrapyard | Entered Materials 309 | -10/Materials | Build established: Mutant 516 | -10/Materials | Discovered new exit (range 14) 1045 | -10/Materials | Discovered new exit (range 16) 1389 | -10/Materials | Discovered new exit (range 8) 1404 | -10/Materials | Entered Subcaves 1500 | -10/Subcaves | Visited Clippyterm 1505 | -10/Subcaves | Learned Factory stockpile data 1505 | -10/Subcaves | Learned Factory garrison access intel 1653 | -10/Subcaves | Shifting Twisted Machinery released Sub. Shrapnel Launcher 1655 | -10/Subcaves | Shifting Twisted Machinery released Battle Rifle 2012 | -10/Subcaves | Core integrity fell below 50% 2069 | -10/Subcaves | Core integrity fell below 20% 2110 | -10/Subcaves | Lost 5 parts (1p2n2w) 2251 | -10/Subcaves | Visited 4L-MR0's lab 3084 | -10/Subcaves | Shifting Twisted Machinery released Sub. Power Source 3095 | -10/Subcaves | Shifting Twisted Machinery released Sub. Laser 3257 | -10/Subcaves | Destroyed by W7-2OQ(R) with Subdweller Machine Gun Last Messages --------------- visitors." 02295_ 4L-MR0 mumbles: "Who knows where that last prototype ended up, probably tossed aside somewhere as if it were useless junk..." 02296_ Connecting with 4L-MR0's Prototype Logs... 02318_ EAU 02466_ System corrupted: Energy discharge (-97). 02554_ System corrupted: Component data lost. 02698_